[Event "*** Titled Tuesday Blitz"]
[Site "Chess.com"]
[Date "2020.05.19"]
[Round "3"]
[White "kintoho"]
[Black "FeketeBarika"]
[Result "1-0"]
[WhiteElo "2442"]
[BlackElo "2269"]
[TimeControl "180+1"]
[EndTime "12:28:46 PDT"]
[Termination "kintoho won by resignation"]

1. e4 {[%clk 0:03:00.9]} 1... e6 {[%clk 0:02:56.5]} 2. d4 {[%clk 0:03:00.5]}
2... d5 {[%clk 0:02:55.5]} 3. exd5 {[%clk 0:03:00.4]} 3... exd5 {[%clk
0:02:55.1]} 4. c4 {[%clk 0:03:00.6]} 4... Nf6 {[%clk 0:02:52.4]} 5. Nc3 {[%clk
0:03:00.7]} 5... Be7 {[%clk 0:02:51.8]} 6. Nf3 {[%clk 0:03:00.7]} 6... O-O
{[%clk 0:02:51.8]} 7. cxd5 {[%clk 0:03:00.2]} 7... Nxd5 {[%clk 0:02:51.4]} 8.
Bd3 {[%clk 0:03:00.4]} 8... h6 {[%clk 0:02:49.9]} 9. h3 {[%clk 0:02:49.9]} 9...
Bf6 {[%clk 0:02:46.6]} 10. O-O {[%clk 0:02:48.9]} 10... c6 {[%clk 0:02:42.2]}
11. a3 {[%clk 0:02:47.4]} 11... Be6 {[%clk 0:02:14.5]} 12. Bc2 {[%clk
0:02:46.8]} 12... Ne7 {[%clk 0:01:43.2]} 13. Ne4 {[%clk 0:02:46.7]} 13... Nd7
{[%clk 0:01:40.5]} 14. Bf4 {[%clk 0:02:38.6]} 14... Ng6 {[%clk 0:01:14.8]} 15.
Be3 {[%clk 0:02:34.6]} 15... Re8 {[%clk 0:01:10.2]} 16. Re1 {[%clk 0:02:29.4]}
16... Nb6 {[%clk 0:01:07.9]} 17. Nc5 {[%clk 0:02:27.2]} 17... Qc7 {[%clk
0:00:53]} 18. Rc1 {[%clk 0:02:19.9]} 18... Rad8 {[%clk 0:00:50.8]} 19. Qd3
{[%clk 0:02:10.9]} 19... Nf8 {[%clk 0:00:49.8]} 20. b3 {[%clk 0:01:59.5]} 20...
Nd5 {[%clk 0:00:46]} 21. Nxe6 {[%clk 0:01:55.3]} 21... Rxe6 {[%clk 0:00:44.8]}
22. Bd2 {[%clk 0:01:51.7]} 22... Rde8 {[%clk 0:00:42.5]} 23. Rxe6 {[%clk
0:01:47.3]} 23... Rxe6 {[%clk 0:00:43.4]} 24. Qf5 {[%clk 0:01:39.9]} 24... Qe7
{[%clk 0:00:29.2]} 25. Bd3 {[%clk 0:01:30.4]} 25... Qxa3 {[%clk 0:00:27.4]} 26.
Bc4 {[%clk 0:01:26.4]} 26... Rd6 {[%clk 0:00:26.3]} 27. Re1 {[%clk 0:01:24.1]}
27... Rd8 {[%clk 0:00:21]} 28. Bxd5 {[%clk 0:01:17.7]} 28... Rxd5 {[%clk
0:00:20.8]} 29. Qc8 {[%clk 0:01:17.2]} 29... Rd8 {[%clk 0:00:16.7]} 30. Qxb7
{[%clk 0:01:16.4]} 30... c5 {[%clk 0:00:12.8]} 31. dxc5 {[%clk 0:01:12.2]} 31...
Qxc5 {[%clk 0:00:11.9]} 32. Be3 {[%clk 0:01:12.4]} 32... Qc2 {[%clk 0:00:11]}
33. Bxa7 {[%clk 0:01:09.9]} 33... Rd7 {[%clk 0:00:09.8]} 34. Qb5 {[%clk
0:01:05.6]} 34... Rxa7 {[%clk 0:00:08.1]} 35. Re8 {[%clk 0:01:05]} 35... Re7
{[%clk 0:00:07.7]} 36. Ra8 {[%clk 0:01:01.7]} 36... Qd1+ {[%clk 0:00:07.3]} 37.
Kh2 {[%clk 0:01:01.3]} 37... Qd6+ {[%clk 0:00:07.4]} 38. g3 {[%clk 0:01:01.3]}
38... Rd7 {[%clk 0:00:05.8]} 39. b4 {[%clk 0:00:58.2]} 39... Rd8 {[%clk
0:00:05.8]} 40. Ra6 {[%clk 0:00:57.3]} 40... Qd1 {[%clk 0:00:03.6]} 41. Qc6
{[%clk 0:00:55.6]} 41... Qe2 {[%clk 0:00:02.6]} 42. Kg2 {[%clk 0:00:53.9]} 42...
Re8 {[%clk 0:00:03]} 43. b5 {[%clk 0:00:49.8]} 43... Ne6 {[%clk 0:00:03]} 44.
Qxe8+ {[%clk 0:00:46.9]} 44... Kh7 {[%clk 0:00:03.2]} 45. Qxf7 {[%clk
0:00:46.5]} 45... Ng5 {[%clk 0:00:02.7]} 46. Nxg5+ {[%clk 0:00:45.9]} 46... Bxg5
{[%clk 0:00:02.5]} 47. Qf5+ {[%clk 0:00:45.2]} 47... Kg8 {[%clk 0:00:02.3]} 48.
Ra8+ {[%clk 0:00:44.6]} 1-0

[Event "*** Titled Tuesday Blitz"]
[Site "Chess.com"]
[Date "2020.05.19"]
[Round "3"]
[White "marianokar"]
[Black "Semen_Khanin"]
[Result "0-1"]
[WhiteElo "2413"]
[BlackElo "2653"]
[TimeControl "180+1"]
[EndTime "12:28:48 PDT"]
[Termination "Semen_Khanin won by resignation"]

1. e4 {[%clk 0:03:00.9]} 1... c5 {[%clk 0:02:59.8]} 2. Nf3 {[%clk 0:03:00.2]}
2... e6 {[%clk 0:03:00.7]} 3. d3 {[%clk 0:02:58.3]} 3... Nc6 {[%clk 0:03:00.5]}
4. g3 {[%clk 0:02:56.9]} 4... g6 {[%clk 0:03:00.9]} 5. Bg2 {[%clk 0:02:57.2]}
5... Bg7 {[%clk 0:03:01.4]} 6. O-O {[%clk 0:02:57.7]} 6... Nge7 {[%clk 0:03:02]}
7. c3 {[%clk 0:02:57.4]} 7... O-O {[%clk 0:02:59.5]} 8. d4 {[%clk 0:02:51.8]}
8... d6 {[%clk 0:02:59.7]} 9. Na3 {[%clk 0:02:30.9]} 9... b6 {[%clk 0:02:59.1]}
10. Re1 {[%clk 0:02:29.5]} 10... Bb7 {[%clk 0:02:58.7]} 11. h4 {[%clk
0:02:24.3]} 11... h6 {[%clk 0:02:49.1]} 12. Bf4 {[%clk 0:01:27]} 12... e5 {[%clk
0:02:39.2]} 13. dxe5 {[%clk 0:01:27.1]} 13... dxe5 {[%clk 0:02:35.8]} 14. Be3
{[%clk 0:01:27.6]} 14... Bc8 {[%clk 0:02:24.5]} 15. h5 {[%clk 0:00:58.6]} 15...
g5 {[%clk 0:02:22.9]} 16. Nd2 {[%clk 0:00:54.1]} 16... Be6 {[%clk 0:02:19.7]}
17. Bf1 {[%clk 0:00:52.1]} 17... Qd7 {[%clk 0:01:47.5]} 18. Bc4 {[%clk
0:00:44.7]} 18... Bg4 {[%clk 0:01:45.8]} 19. Be2 {[%clk 0:00:43.5]} 19... Bh3
{[%clk 0:01:43.4]} 20. Ndc4 {[%clk 0:00:39.2]} 20... Qxd1 {[%clk 0:01:35.5]} 21.
Raxd1 {[%clk 0:00:38.3]} 21... Be6 {[%clk 0:01:36.2]} 22. Nb5 {[%clk 0:00:27.2]}
22... Rad8 {[%clk 0:01:34.3]} 23. Nc7 {[%clk 0:00:24.7]} 23... Bc8 {[%clk
0:01:31.6]} 24. a4 {[%clk 0:00:18.4]} 24... f5 {[%clk 0:01:28.3]} 25. exf5
{[%clk 0:00:17.5]} 25... Nxf5 {[%clk 0:01:28.3]} 26. Nd5 {[%clk 0:00:15.7]}
26... e4 {[%clk 0:01:25.2]} 27. Bg4 {[%clk 0:00:08.9]} 27... Be6 {[%clk
0:01:12.4]} 28. Bxf5 {[%clk 0:00:04.9]} 28... Bxf5 {[%clk 0:00:44.1]} 29. Nc7
{[%clk 0:00:04.8]} 29... Bg4 {[%clk 0:00:42]} 30. Rxd8 {[%clk 0:00:03.9]} 30...
Rxd8 {[%clk 0:00:42.5]} 31. a5 {[%clk 0:00:04.8]} 31... Rd7 {[%clk 0:00:29.9]}
32. axb6 {[%clk 0:00:05.7]} 32... axb6 {[%clk 0:00:30.2]} 33. Nb5 {[%clk
0:00:05.9]} 33... Bxh5 {[%clk 0:00:29.2]} 34. Nxb6 {[%clk 0:00:04.8]} 34... Rd8
{[%clk 0:00:17.9]} 35. Bxc5 {[%clk 0:00:05.7]} 35... Ne5 {[%clk 0:00:18.1]} 36.
Bd4 {[%clk 0:00:04.7]} 36... Nf3+ {[%clk 0:00:17.9]} 0-1

[Event "*** Titled Tuesday Blitz"]
[Site "Chess.com"]
[Date "2020.05.19"]
[Round "3"]
[White "rasmussvane"]
[Black "attack2mateU"]
[Result "1-0"]
[WhiteElo "2895"]
[BlackElo "2626"]
[TimeControl "180+1"]
[EndTime "12:28:49 PDT"]
[Termination "rasmussvane won on time"]

1. Nf3 {[%clk 0:03:00.9]} 1... Nf6 {[%clk 0:02:59.2]} 2. g3 {[%clk 0:03:01]}
2... g6 {[%clk 0:02:58.8]} 3. Bg2 {[%clk 0:03:01.4]} 3... d5 {[%clk 0:02:59.2]}
4. O-O {[%clk 0:03:02.1]} 4... Bg7 {[%clk 0:02:59.6]} 5. d4 {[%clk 0:03:02.3]}
5... O-O {[%clk 0:02:59.5]} 6. c4 {[%clk 0:03:02.9]} 6... dxc4 {[%clk
0:02:59.2]} 7. Na3 {[%clk 0:03:02.9]} 7... c3 {[%clk 0:02:59.1]} 8. bxc3 {[%clk
0:03:03.8]} 8... c5 {[%clk 0:02:59]} 9. Ne5 {[%clk 0:03:00.8]} 9... Nc6 {[%clk
0:02:57.7]} 10. Nac4 {[%clk 0:02:54.4]} 10... cxd4 {[%clk 0:02:48.3]} 11. Nxc6
{[%clk 0:02:53.3]} 11... bxc6 {[%clk 0:02:48.1]} 12. cxd4 {[%clk 0:02:53.9]}
12... Be6 {[%clk 0:01:44.2]} 13. Ne5 {[%clk 0:02:51]} 13... c5 {[%clk
0:01:44.6]} 14. Ba3 {[%clk 0:02:19.2]} 14... cxd4 {[%clk 0:01:07.9]} 15. Nc6
{[%clk 0:02:05.7]} 15... Qe8 {[%clk 0:01:08.2]} 16. Bxe7 {[%clk 0:01:55.8]}
16... Nd5 {[%clk 0:00:47]} 17. Bxf8 {[%clk 0:01:53.2]} 17... Kxf8 {[%clk
0:00:46]} 18. Nxd4 {[%clk 0:01:14.7]} 18... Nc3 {[%clk 0:00:42.3]} 19. Nxe6+
{[%clk 0:01:14.8]} 19... Qxe6 {[%clk 0:00:42.8]} 20. Qb3 {[%clk 0:01:06.5]}
20... Nxe2+ {[%clk 0:00:41.3]} 21. Kh1 {[%clk 0:01:06.4]} 21... Qxb3 {[%clk
0:00:35]} 22. axb3 {[%clk 0:01:07.3]} 22... Bxa1 {[%clk 0:00:33.1]} 23. Bxa8
{[%clk 0:01:07.1]} 23... Bd4 {[%clk 0:00:33.3]} 24. Kg2 {[%clk 0:01:05.1]} 24...
Nc3 {[%clk 0:00:33.6]} 25. Re1 {[%clk 0:01:02.7]} 25... Bb6 {[%clk 0:00:25.2]}
26. Bc6 {[%clk 0:01:01.7]} 26... Na2 {[%clk 0:00:23.9]} 27. Re8+ {[%clk
0:00:57.6]} 27... Kg7 {[%clk 0:00:23.6]} 28. Bd5 {[%clk 0:00:57.8]} 28... Nb4
{[%clk 0:00:19.2]} 29. Bc4 {[%clk 0:00:57]} 29... Nc6 {[%clk 0:00:19.8]} 30. f4
{[%clk 0:00:53.1]} 30... Nd8 {[%clk 0:00:09.4]} 31. Re7 {[%clk 0:00:50.7]} 31...
Kf6 {[%clk 0:00:09.3]} 32. Rd7 {[%clk 0:00:50.7]} 32... Ne6 {[%clk 0:00:09.5]}
33. Kf3 {[%clk 0:00:47.4]} 33... h5 {[%clk 0:00:09.1]} 34. h3 {[%clk 0:00:46.1]}
34... Bc5 {[%clk 0:00:08]} 35. g4 {[%clk 0:00:32.4]} 35... hxg4+ {[%clk
0:00:07.5]} 36. hxg4 {[%clk 0:00:33.3]} 36... g5 {[%clk 0:00:05.4]} 37. f5
{[%clk 0:00:26.5]} 37... Nf8 {[%clk 0:00:01.7]} 38. Rxf7+ {[%clk 0:00:25.4]}
38... Ke5 {[%clk 0:00:02.3]} 39. Rc7 {[%clk 0:00:16.5]} 39... Bd6 {[%clk
0:00:02.3]} 40. Rxa7 {[%clk 0:00:16]} 1-0

[Event "*** Titled Tuesday Blitz"]
[Site "Chess.com"]
[Date "2020.05.19"]
[Round "3"]
[White "Rakesh"]
[Black "doons21"]
[Result "1-0"]
[WhiteElo "2375"]
[BlackElo "2541"]
[TimeControl "180+1"]
[EndTime "12:28:49 PDT"]
[Termination "Rakesh won by checkmate"]

1. e4 {[%clk 0:02:46.1]} 1... e6 {[%clk 0:02:58.8]} 2. d4 {[%clk 0:02:44.9]}
2... d5 {[%clk 0:02:59.1]} 3. Bd3 {[%clk 0:02:45.8]} 3... dxe4 {[%clk
0:02:58.5]} 4. Bxe4 {[%clk 0:02:46.1]} 4... Nf6 {[%clk 0:02:59.4]} 5. Bf3 {[%clk
0:02:46.3]} 5... Nc6 {[%clk 0:03:00.3]} 6. Ne2 {[%clk 0:02:46.4]} 6... e5 {[%clk
0:03:00.5]} 7. Bxc6+ {[%clk 0:02:43.4]} 7... bxc6 {[%clk 0:03:00.3]} 8. dxe5
{[%clk 0:02:44]} 8... Qxd1+ {[%clk 0:03:00.9]} 9. Kxd1 {[%clk 0:02:44.9]} 9...
Ng4 {[%clk 0:03:01.5]} 10. Be3 {[%clk 0:02:41]} 10... Nxe3+ {[%clk 0:02:44.7]}
11. fxe3 {[%clk 0:02:41.9]} 11... Bc5 {[%clk 0:02:44.6]} 12. Nd4 {[%clk
0:02:33.9]} 12... Bg4+ {[%clk 0:02:44.5]} 13. Kc1 {[%clk 0:02:28]} 13... O-O-O
{[%clk 0:02:39.1]} 14. c3 {[%clk 0:02:20.4]} 14... Rhe8 {[%clk 0:02:30.6]} 15.
Nd2 {[%clk 0:02:17.3]} 15... f6 {[%clk 0:01:34.4]} 16. N2b3 {[%clk 0:01:55.1]}
16... Bb6 {[%clk 0:01:33]} 17. exf6 {[%clk 0:01:44.2]} 17... gxf6 {[%clk
0:01:14.8]} 18. Re1 {[%clk 0:01:29.9]} 18... Re4 {[%clk 0:00:51.1]} 19. a4
{[%clk 0:01:24.9]} 19... a5 {[%clk 0:00:49.8]} 20. Nd2 {[%clk 0:01:21.8]} 20...
Ree8 {[%clk 0:00:43.2]} 21. Kc2 {[%clk 0:01:20.2]} 21... c5 {[%clk 0:00:40]} 22.
Nb5 {[%clk 0:01:16.6]} 22... Re6 {[%clk 0:00:32.6]} 23. h3 {[%clk 0:01:15.5]}
23... Bf5+ {[%clk 0:00:31]} 24. e4 {[%clk 0:01:15.5]} 24... Rde8 {[%clk
0:00:31.3]} 25. Kd3 {[%clk 0:01:01]} 25... c4+ {[%clk 0:00:25.9]} 26. Kxc4
{[%clk 0:01:00.7]} 26... Bxe4 {[%clk 0:00:26.1]} 27. Nxe4 {[%clk 0:01:01]} 27...
Rxe4+ {[%clk 0:00:26.2]} 28. Rxe4 {[%clk 0:01:00.3]} 28... Rxe4+ {[%clk
0:00:27.1]} 29. Kd3 {[%clk 0:00:59.8]} 29... Re3+ {[%clk 0:00:27.1]} 30. Kd2
{[%clk 0:01:00.2]} 30... Rg3 {[%clk 0:00:27.4]} 31. Rf1 {[%clk 0:00:56.5]} 31...
Rxg2+ {[%clk 0:00:27.4]} 32. Kc1 {[%clk 0:00:57]} 32... Be3+ {[%clk 0:00:25.2]}
33. Kb1 {[%clk 0:00:57]} 33... Bg5 {[%clk 0:00:25.2]} 34. Nd4 {[%clk 0:00:53.8]}
34... Rg3 {[%clk 0:00:24.5]} 35. Nc6 {[%clk 0:00:50.4]} 35... Rxh3 {[%clk
0:00:22.9]} 36. Nxa5 {[%clk 0:00:49.3]} 36... Rh4 {[%clk 0:00:22.8]} 37. b3
{[%clk 0:00:46.5]} 37... Rh2 {[%clk 0:00:20.6]} 38. Nc6 {[%clk 0:00:46.3]} 38...
h5 {[%clk 0:00:20.5]} 39. a5 {[%clk 0:00:46.6]} 39... Kb7 {[%clk 0:00:20]} 40.
Nb4 {[%clk 0:00:45.7]} 40... h4 {[%clk 0:00:20]} 41. a6+ {[%clk 0:00:45.9]}
41... Ka7 {[%clk 0:00:20.4]} 42. Rf5 {[%clk 0:00:35]} 42... h3 {[%clk 0:00:20]}
43. Rb5 {[%clk 0:00:34.9]} 43... Rh1+ {[%clk 0:00:17.6]} 44. Kc2 {[%clk
0:00:34.9]} 44... Rc1+ {[%clk 0:00:14.4]} 45. Kd3 {[%clk 0:00:35.2]} 45... h2
{[%clk 0:00:14.6]} 46. Rb7+ {[%clk 0:00:34.9]} 46... Ka8 {[%clk 0:00:14.8]} 47.
Nc6 {[%clk 0:00:34]} 47... Rd1+ {[%clk 0:00:14.2]} 48. Kc4 {[%clk 0:00:32.9]}
48... Rd8 {[%clk 0:00:14.6]} 49. Ra7# {[%clk 0:00:32.6]} 1-0

[Event "*** Titled Tuesday Blitz"]
[Site "Chess.com"]
[Date "2020.05.19"]
[Round "3"]
[White "bakki78"]
[Black "florianschwabeneder"]
[Result "1-0"]
[WhiteElo "2751"]
[BlackElo "2511"]
[TimeControl "180+1"]
[EndTime "12:28:50 PDT"]
[Termination "bakki78 won on time"]

1. e4 {[%clk 0:03:00.1]} 1... c5 {[%clk 0:02:59.7]} 2. c3 {[%clk 0:02:59.6]}
2... e6 {[%clk 0:02:58]} 3. d4 {[%clk 0:02:59]} 3... d5 {[%clk 0:02:58.4]} 4. e5
{[%clk 0:02:59.4]} 4... Nc6 {[%clk 0:02:58.1]} 5. Nf3 {[%clk 0:02:59.3]} 5...
Nh6 {[%clk 0:02:57.5]} 6. a3 {[%clk 0:02:48.4]} 6... f6 {[%clk 0:02:57]} 7. Bxh6
{[%clk 0:02:26.9]} 7... gxh6 {[%clk 0:02:57.9]} 8. exf6 {[%clk 0:02:25.2]} 8...
Qxf6 {[%clk 0:02:57.4]} 9. Bb5 {[%clk 0:02:25.3]} 9... Bd6 {[%clk 0:02:54.3]}
10. O-O {[%clk 0:02:24.7]} 10... O-O {[%clk 0:02:54]} 11. Re1 {[%clk 0:02:22.4]}
11... a6 {[%clk 0:02:37.1]} 12. Bxc6 {[%clk 0:02:20.8]} 12... bxc6 {[%clk
0:02:37]} 13. Nbd2 {[%clk 0:02:16.9]} 13... cxd4 {[%clk 0:02:18]} 14. cxd4
{[%clk 0:02:15.8]} 14... c5 {[%clk 0:02:18.2]} 15. dxc5 {[%clk 0:02:15.9]} 15...
Bxc5 {[%clk 0:02:18.5]} 16. Rc1 {[%clk 0:02:16.3]} 16... Bb6 {[%clk 0:02:06.4]}
17. b4 {[%clk 0:02:02.1]} 17... Bd7 {[%clk 0:01:43.8]} 18. Nb3 {[%clk
0:01:50.7]} 18... Ba4 {[%clk 0:01:34.1]} 19. Qd3 {[%clk 0:01:49.3]} 19... Bb5
{[%clk 0:01:33.5]} 20. Qd2 {[%clk 0:01:48.7]} 20... Bc4 {[%clk 0:01:29.7]} 21.
Nc5 {[%clk 0:01:47.2]} 21... Bxc5 {[%clk 0:01:25.9]} 22. bxc5 {[%clk 0:01:47.4]}
22... Rac8 {[%clk 0:01:24.7]} 23. Ne5 {[%clk 0:01:47.4]} 23... Bb5 {[%clk
0:01:20.3]} 24. c6 {[%clk 0:01:45.9]} 24... Qf4 {[%clk 0:01:06.7]} 25. Qb2
{[%clk 0:01:32.3]} 25... d4 {[%clk 0:00:51.3]} 26. g3 {[%clk 0:01:30.8]} 26...
Qf6 {[%clk 0:00:30.7]} 27. Qxd4 {[%clk 0:01:29.6]} 27... Rfd8 {[%clk 0:00:30.5]}
28. Qe3 {[%clk 0:01:28]} 28... Rd5 {[%clk 0:00:28.8]} 29. c7 {[%clk 0:01:17.4]}
29... Qg7 {[%clk 0:00:26]} 30. Qf4 {[%clk 0:00:46.2]} 30... Rxc7 {[%clk
0:00:12.2]} 31. Rxc7 {[%clk 0:00:43]} 31... Qxc7 {[%clk 0:00:13.1]} 32. Qg4+
{[%clk 0:00:43.3]} 32... Kf8 {[%clk 0:00:08.2]} 33. Qxe6 {[%clk 0:00:43]} 33...
Rd6 {[%clk 0:00:08.6]} 34. Qf5+ {[%clk 0:00:39.5]} 34... Kg8 {[%clk 0:00:07.8]}
35. Ng4 {[%clk 0:00:38.4]} 35... Qf7 {[%clk 0:00:04.9]} 36. Qc8+ {[%clk
0:00:34.9]} 36... Kg7 {[%clk 0:00:04.9]} 37. Qc3+ {[%clk 0:00:34]} 37... Kf8
{[%clk 0:00:03.4]} 38. Qh8+ {[%clk 0:00:32.9]} 38... Qg8 {[%clk 0:00:03.4]} 39.
Qe5 {[%clk 0:00:32.8]} 39... Qg6 {[%clk 0:00:02.1]} 40. Qe7+ {[%clk 0:00:32.1]}
40... Kg8 {[%clk 0:00:02]} 41. Ne5 {[%clk 0:00:29.3]} 41... Qe6 {[%clk
0:00:01.4]} 42. Qc7 {[%clk 0:00:27.7]} 1-0

[Event "*** Titled Tuesday Blitz"]
[Site "Chess.com"]
[Date "2020.05.19"]
[Round "3"]
[White "savagemedusa"]
[Black "OMGCovid-19"]
[Result "1-0"]
[WhiteElo "2262"]
[BlackElo "1842"]
[TimeControl "180+1"]
[EndTime "12:28:50 PDT"]
[Termination "savagemedusa won on time"]

1. d4 {[%clk 0:03:00.9]} 1... Nf6 {[%clk 0:02:55.1]} 2. c4 {[%clk 0:02:59.3]}
2... c5 {[%clk 0:02:54]} 3. d5 {[%clk 0:02:53.4]} 3... b5 {[%clk 0:02:53.3]} 4.
cxb5 {[%clk 0:02:49.6]} 4... a6 {[%clk 0:02:48.5]} 5. bxa6 {[%clk 0:02:50.1]}
5... Bxa6 {[%clk 0:02:47.9]} 6. Nc3 {[%clk 0:02:50.7]} 6... d6 {[%clk
0:02:47.8]} 7. e4 {[%clk 0:02:49.9]} 7... Bxf1 {[%clk 0:02:47.7]} 8. Kxf1 {[%clk
0:02:50.3]} 8... Nbd7 {[%clk 0:02:47.7]} 9. g3 {[%clk 0:02:50.4]} 9... g6 {[%clk
0:02:47.9]} 10. Kg2 {[%clk 0:02:50.7]} 10... Bg7 {[%clk 0:02:47.9]} 11. a4
{[%clk 0:02:49.4]} 11... O-O {[%clk 0:02:48.1]} 12. Nb5 {[%clk 0:02:34.6]} 12...
Ra6 {[%clk 0:02:45.9]} 13. Be3 {[%clk 0:02:31.2]} 13... Qb6 {[%clk 0:02:30.5]}
14. Qd3 {[%clk 0:02:17.5]} 14... Ng4 {[%clk 0:02:12.1]} 15. Bc1 {[%clk
0:01:54.2]} 15... Nge5 {[%clk 0:02:08.8]} 16. Qe2 {[%clk 0:01:52.4]} 16... f5
{[%clk 0:01:57.1]} 17. f4 {[%clk 0:01:48.4]} 17... Nf7 {[%clk 0:01:32.8]} 18.
exf5 {[%clk 0:01:47.6]} 18... gxf5 {[%clk 0:01:32.3]} 19. Qxe7 {[%clk
0:01:45.5]} 19... Rxa4 {[%clk 0:01:22]} 20. Rxa4 {[%clk 0:01:35.9]} 20... Qxb5
{[%clk 0:01:21.5]} 21. Ra7 {[%clk 0:01:32.8]} 21... Nb6 {[%clk 0:00:55.3]} 22.
Qb7 {[%clk 0:01:16.3]} 22... Bxb2 {[%clk 0:00:40.9]} 23. Bxb2 {[%clk 0:01:05.7]}
23... Qxb2+ {[%clk 0:00:40.5]} 24. Kh3 {[%clk 0:01:06.1]} 24... Qb5 {[%clk
0:00:15.7]} 25. Ra6 {[%clk 0:00:57.6]} 25... Qf1+ {[%clk 0:00:15.7]} 26. Kh4
{[%clk 0:00:56.5]} 26... Nc4 {[%clk 0:00:15.9]} 27. h3 {[%clk 0:00:48.2]} 27...
Ne3 {[%clk 0:00:13.8]} 28. Ra2 {[%clk 0:00:45]} 28... Qd3 {[%clk 0:00:12.5]} 29.
Qe7 {[%clk 0:00:40.1]} 29... Nxd5 {[%clk 0:00:08.3]} 30. Qe2 {[%clk 0:00:39.6]}
30... Qd4 {[%clk 0:00:07.3]} 31. g4 {[%clk 0:00:36.8]} 31... Qf6+ {[%clk
0:00:07]} 32. Kg3 {[%clk 0:00:37.1]} 32... fxg4 {[%clk 0:00:07.3]} 33. hxg4
{[%clk 0:00:35.1]} 33... Qxf4+ {[%clk 0:00:07.2]} 34. Kh3 {[%clk 0:00:35.3]}
34... Ne5 {[%clk 0:00:06.9]} 35. Qg2 {[%clk 0:00:30.2]} 35... Ne3 {[%clk
0:00:04]} 36. Qg3 {[%clk 0:00:28.8]} 36... Qh6+ {[%clk 0:00:04.1]} 37. Qh4
{[%clk 0:00:29.2]} 37... Qxh4+ {[%clk 0:00:03.5]} 38. Kxh4 {[%clk 0:00:30.1]}
38... N3c4 {[%clk 0:00:02.7]} 39. Nh3 {[%clk 0:00:26.9]} 39... Nf3+ {[%clk
0:00:02]} 40. Kg3 {[%clk 0:00:26.3]} 40... Nfe5 {[%clk 0:00:02.1]} 41. Ng5
{[%clk 0:00:25.8]} 1-0

[Event "*** Titled Tuesday Blitz"]
[Site "Chess.com"]
[Date "2020.05.19"]
[Round "3"]
[White "maciek_92"]
[Black "jmduque"]
[Result "1-0"]
[WhiteElo "2740"]
[BlackElo "2496"]
[TimeControl "180+1"]
[EndTime "12:28:51 PDT"]
[Termination "maciek_92 won by checkmate"]

1. e4 {[%clk 0:03:00.9]} 1... c5 {[%clk 0:02:58.2]} 2. Nf3 {[%clk 0:03:01.3]}
2... e6 {[%clk 0:02:58.6]} 3. d4 {[%clk 0:03:01.8]} 3... cxd4 {[%clk 0:02:59.5]}
4. Nxd4 {[%clk 0:03:02.5]} 4... Nc6 {[%clk 0:03:00.4]} 5. Nc3 {[%clk 0:03:03]}
5... Qc7 {[%clk 0:03:00.4]} 6. Be2 {[%clk 0:02:57.7]} 6... a6 {[%clk 0:03:00.5]}
7. O-O {[%clk 0:02:57.8]} 7... Nf6 {[%clk 0:03:00.9]} 8. Be3 {[%clk 0:02:57.9]}
8... Be7 {[%clk 0:03:01.2]} 9. f4 {[%clk 0:02:54.8]} 9... d6 {[%clk 0:03:01.5]}
10. Qe1 {[%clk 0:02:51.8]} 10... O-O {[%clk 0:02:59.5]} 11. Qg3 {[%clk
0:02:47.9]} 11... Bd7 {[%clk 0:02:59.8]} 12. Rae1 {[%clk 0:02:42.8]} 12... Nxd4
{[%clk 0:02:57.3]} 13. Bxd4 {[%clk 0:02:42.7]} 13... Bc6 {[%clk 0:02:58.2]} 14.
Bd3 {[%clk 0:02:37.8]} 14... b5 {[%clk 0:02:58]} 15. a3 {[%clk 0:02:35.2]} 15...
Qb7 {[%clk 0:02:57.9]} 16. b4 {[%clk 0:02:17.3]} 16... Rac8 {[%clk 0:02:43.1]}
17. Qh3 {[%clk 0:01:59.9]} 17... g6 {[%clk 0:02:39.5]} 18. f5 {[%clk 0:01:53.9]}
18... e5 {[%clk 0:02:38.8]} 19. Be3 {[%clk 0:01:52.1]} 19... Bd7 {[%clk
0:02:34.5]} 20. Nd5 {[%clk 0:01:24.5]} 20... Nxd5 {[%clk 0:02:25.8]} 21. exd5
{[%clk 0:01:25.4]} 21... Qxd5 {[%clk 0:02:21.2]} 22. Bh6 {[%clk 0:01:11.1]}
22... Rfe8 {[%clk 0:02:18.9]} 23. Kh1 {[%clk 0:00:36.6]} 23... Rc3 {[%clk
0:02:02.4]} 24. Qg3 {[%clk 0:00:32.2]} 24... Bc6 {[%clk 0:01:50.6]} 25. Bd2
{[%clk 0:00:26]} 25... Rxa3 {[%clk 0:01:49.8]} 26. Bc1 {[%clk 0:00:24.4]} 26...
Ra1 {[%clk 0:01:44.4]} 27. fxg6 {[%clk 0:00:23.6]} 27... fxg6 {[%clk 0:01:43.1]}
28. Bxg6 {[%clk 0:00:23.6]} 28... Qxg2+ {[%clk 0:01:43.3]} 29. Qxg2 {[%clk
0:00:23.6]} 29... Bxg2+ {[%clk 0:01:44.2]} 30. Kxg2 {[%clk 0:00:24.5]} 30...
hxg6 {[%clk 0:01:44.8]} 31. Kf3 {[%clk 0:00:22.6]} 31... Rc8 {[%clk 0:01:44.2]}
32. Ke4 {[%clk 0:00:21]} 32... Rxc2 {[%clk 0:01:42.1]} 33. Kd5 {[%clk
0:00:21.5]} 33... Bg5 {[%clk 0:01:33.9]} 34. Bxg5 {[%clk 0:00:20.5]} 34... Rxe1
{[%clk 0:01:33.6]} 35. Rxe1 {[%clk 0:00:21.4]} 35... Rc4 {[%clk 0:01:33.4]} 36.
h4 {[%clk 0:00:21]} 36... Rxb4 {[%clk 0:01:33.2]} 37. Kxd6 {[%clk 0:00:21.2]}
37... e4 {[%clk 0:01:33.6]} 38. Ke6 {[%clk 0:00:20.7]} 38... Rc4 {[%clk
0:01:33.2]} 39. Kd5 {[%clk 0:00:19.9]} 39... Kf7 {[%clk 0:01:29.4]} 40. Rf1+
{[%clk 0:00:18.3]} 40... Ke8 {[%clk 0:01:29.4]} 41. Rf6 {[%clk 0:00:18.8]} 41...
a5 {[%clk 0:01:27.3]} 42. Rb6 {[%clk 0:00:17.3]} 42... Rb4 {[%clk 0:01:26.5]}
43. Ke6 {[%clk 0:00:17.3]} 43... Kf8 {[%clk 0:01:25.6]} 44. Bf6 {[%clk 0:00:17]}
44... Kg8 {[%clk 0:00:37.4]} 45. Rb8+ {[%clk 0:00:17.9]} 45... Kh7 {[%clk
0:00:35.4]} 46. Rh8# {[%clk 0:00:18.8]} 1-0